fUSD/lending_fUSD_20260625
["ID","MTS","AMOUNT","RATE_DAILY","PERIOD"]
[426417754,1782367841000,-157.94284415,0.00015,2]
[426417752,1782367841000,-151.0,0.00015,2]
[426417756,1782367841000,-151.0,0.00015,2]
[426417758,1782367841000,-3144.69840507,0.00015033,2]
[426417760,1782367841000,-151.13177012,0.00015068,2]
[426417753,1782367841000,-151.0,0.00015,2]
[426417759,1782367841000,-1638.62451705,0.00015054,2]
[426417763,1782367841000,-151.0,0.00015068,2]
[426417762,1782367841000,-151.0,0.00015068,2]
[426417757,1782367841000,-3144.69840507,0.00015024,2]
[426417766,1782367841000,-151.0,0.00015068,2]
[426417767,1782367841000,-151.0,0.00015068,2]
[426417764,1782367841000,-151.0,0.00015068,2]
[426417768,1782367841000,-172.290922,0.00015068,2]
[426417761,1782367841000,-151.0,0.00015068,2]
[426417765,1782367841000,-151.0,0.00015068,2]
[426417834,1782367842000,-300.0,0.00017999,2]
[426417833,1782367842000,-650.25,0.00017938,2]
[426417831,1782367842000,-2010.64,0.00017728,2]
[426417835,1782367842000,-235.83883317,0.00017999,2]
[426417832,1782367842000,-473.80653449,0.00017876,2]
[426417828,1782367842000,-5091.65,0.00017728,2]
[426417829,1782367842000,-150.99,0.00017728,2]
[426417827,1782367842000,-5397.84,0.00017728,2]
[426417825,1782367842000,-500.09,0.00017483,2]
[426417821,1782367842000,-8019.42200129,0.000172,2]
[426417836,1782367842000,-189.8698782,0.00018,2]
[426417826,1782367842000,-324.30939278,0.00017549,2]
[426417830,1782367842000,-299.99,0.00017728,4]
[426417837,1782367842000,-1341.97227752,0.00018,2]
[426417846,1782367842000,-187.12248808,0.00018152,2]
[426417840,1782367842000,-150.0,0.00018,2]
[426417841,1782367842000,-350.0,0.00018,2]
[426417842,1782367842000,-310.91461357,0.00018,2]
[426417839,1782367842000,-1212.02328487,0.00018,2]
[426417844,1782367842000,-185.486808,0.00018082,2]
[426417843,1782367842000,-331.0,0.00018064,2]
[426417845,1782367842000,-1808.68877903,0.000181,2]
[426417850,1782367842000,-150.0,0.00018258,2]
[426417849,1782367842000,-150.0,0.00018258,2]
[426417847,1782367842000,-189.8698782,0.000182,2]
[426417848,1782367842000,-1341.97227752,0.000182,2]
[426417852,1782367842000,-250.0,0.00018298,2]
[426417822,1782367842000,-170.07,0.00017217,2]
[426417838,1782367842000,-62920.62797204,0.00018,2]
[426417824,1782367842000,-236.0,0.0001726,2]
[426417798,1782367842000,-151.0,0.00016438,2]
[426417820,1782367842000,-537.92999952,0.00017147,2]
[426417853,1782367842000,-209.947,0.00018298,2]
[426417792,1782367842000,-300.0,0.00016438,7]
[426417793,1782367842000,-300.0,0.00016438,7]
[426417795,1782367842000,-300.0,0.00016438,7]
[426417794,1782367842000,-300.0,0.00016438,7]
[426417799,1782367842000,-151.0,0.00016438,2]
[426417797,1782367842000,-249.774941,0.00016438,7]
[426417796,1782367842000,-300.0,0.00016438,7]
[426417800,1782367842000,-151.0,0.00016438,2]
[426417802,1782367842000,-151.0,0.00016438,2]
[426417803,1782367842000,-151.0,0.00016438,2]
[426417801,1782367842000,-151.0,0.00016438,2]
[426417805,1782367842000,-500.0,0.00016466,2]
[426417823,1782367842000,-170.07,0.00017217,2]
[426417804,1782367842000,-226.434564,0.00016438,2]
[426417810,1782367842000,-8019.42200129,0.000167,2]
[426417808,1782367842000,-4015.05532469,0.00016626,2]
[426417811,1782367842000,-172.23,0.00016712,2]
[426417809,1782367842000,-736.0,0.00016644,2]
[426417807,1782367842000,-500.0,0.00016541,2]
[426417812,1782367842000,-8019.42200129,0.000168,2]
[426417813,1782367842000,-678.2,0.000168,2]
[426417814,1782367842000,-9999.99,0.00016922,2]
[426417815,1782367842000,-8019.42200129,0.00017,2]
[426417816,1782367842000,-150.0,0.00017,2]
[426417817,1782367842000,-500.0,0.00017037,2]
[426417818,1782367842000,-159.82,0.00017127,2]
[426417819,1782367842000,-163.1,0.00017127,2]
[426417806,1782367842000,-8019.42200129,0.000165,2]
[426417851,1782367842000,-150.0,0.00018258,2]
[426417886,1782367842000,-35297.06,0.0001872,2]
[426417854,1782367842000,-221.0,0.00018298,2]
[426417887,1782367842000,-1341.97227752,0.000189,2]
[426417888,1782367842000,-1262.8169143,0.00019,2]
[426417891,1782367842000,-150.0,0.00019,2]
[426417890,1782367842000,-678.2,0.00019,2]
[426417892,1782367842000,-202050.11219589,0.00019,2]
[426417894,1782367842000,-1341.97227752,0.000191,2]
[426417893,1782367842000,-500.09,0.00019073,2]
[426417896,1782367842000,-1000.0,0.00019178,2]
[426417901,1782367842000,-151.0,0.00019178,2]
[426417902,1782367842000,-155.957992,0.00019178,2]
[426417895,1782367842000,-1000.0,0.00019178,2]
[426417897,1782367842000,-1000.0,0.00019178,2]
[426417900,1782367842000,-760.5431842,0.00019178,2]
[426417889,1782367842000,-1144.1781529,0.00019,2]
[426417899,1782367842000,-1000.0,0.00019178,2]
[426417903,1782367842000,-158.937491,0.00019178,2]
[426417906,1782367842000,-151.0,0.00019178,2]
[426417904,1782367842000,-20518.94,0.00019178,2]
[426417905,1782367842000,-151.0,0.00019178,2]
[426417907,1782367842000,-153.545205,0.00019178,2]
[426417910,1782367842000,-162.69,0.00019355,7]
[426417913,1782367842000,-500.0,0.0001955,2]
[426417914,1782367842000,-200.0,0.0001955,2]
[426417909,1782367842000,-1341.97227752,0.000193,2]
[426417908,1782367842000,-163.42,0.00019239,2]
[426417911,1782367842000,-888.0,0.00019452,2]
[426417912,1782367842000,-1341.97227752,0.000195,2]
[426417915,1782367842000,-151.0,0.0001955,2]
[426417898,1782367842000,-1000.0,0.00019178,2]
[426417916,1782367842000,-151.0,0.0001955,2]
[426417855,1782367842000,-289.569,0.00018298,2]
[426417884,1782367842000,-801.94,0.0001872,2]
[426417885,1782367842000,-1429.7,0.0001872,2]
[426417857,1782367842000,-150.0,0.00018298,2]
[426417856,1782367842000,-150.758,0.00018298,2]
[426417859,1782367842000,-250.0,0.00018298,2]
[426417858,1782367842000,-150.299,0.00018298,2]
[426417861,1782367842000,-250.0,0.00018298,2]
[426417863,1782367842000,-249.496,0.00018298,2]
[426417860,1782367842000,-195.784,0.00018298,2]
[426417865,1782367842000,-3567.42,0.00018298,2]
[426417864,1782367842000,-191.0,0.00018298,2]
[426417866,1782367842000,-165.813,0.00018298,2]
[426417867,1782367842000,-1277.0,0.00018298,2]
[426417868,1782367842000,-1361.0,0.00018298,2]
[426417870,1782367842000,-1235.844,0.00018298,2]
[426417862,1782367842000,-167.9,0.00018298,2]
[426417873,1782367842000,-177.05488996,0.00018309,2]
[426417869,1782367842000,-491.0,0.00018298,2]
[426417883,1782367842000,-151.0,0.0001872,2]
[426417880,1782367842000,-151.0,0.0001872,2]
[426417881,1782367842000,-151.0,0.0001872,2]
[426417877,1782367842000,-1341.97227752,0.000185,2]
[426417878,1782367842000,-537.92999952,0.00018611,2]
[426417879,1782367842000,-1341.97227752,0.000187,2]
[426417882,1782367842000,-187.875152,0.0001872,2]
[426417874,1782367842000,-189.8698782,0.000184,2]
[426417872,1782367842000,-3649.0,0.00018298,2]
[426417871,1782367842000,-6141.852,0.00018298,2]
[426417876,1782367842000,-189.8698782,0.000185,2]
[426417875,1782367842000,-1341.97227752,0.000184,2]
[426417959,1782367843000,-155.56103216,0.00019715,2]
[426417966,1782367843000,-1561.19726438,0.0002,2]
[426417961,1782367843000,-504896.20806749,0.0001995,15]
[426417958,1782367843000,-155.09929961,0.00019715,2]
[426417957,1782367843000,-1341.97227752,0.000197,2]
[426417950,1782367843000,-151.0,0.0001955,2]
[426417954,1782367843000,-155.09929951,0.0001966,2]
[426417955,1782367843000,-151.0,0.0001966,2]
[426417953,1782367843000,-151.0,0.00019605,2]
[426417952,1782367843000,-155.09929951,0.00019605,2]
[426417963,1782367843000,-819.0,0.0002,2]
[426417956,1782367843000,-75482.4132271,0.00019693,2]
[426417960,1782367843000,-4974.45996912,0.00019824,2]
[426417974,1782367843000,-1318.00162552,0.0002,2]
[426417964,1782367843000,-849.4515839,0.0002,2]
[426417965,1782367843000,-5304.01607613,0.0002,2]
[426417967,1782367843000,-179.64429851,0.0002,2]
[426417968,1782367843000,-150.0,0.0002,2]
[426417969,1782367843000,-26047.18382464,0.0002,2]
[426417970,1782367843000,-384.74899324,0.0002,2]
[426417971,1782367843000,-3950.0,0.0002,2]
[426417972,1782367843000,-400.0,0.0002,2]
[426417973,1782367843000,-26905.39712317,0.0002,2]
[426417978,1782367843000,-1063.90198992,0.0002,2]
[426417976,1782367843000,-38016.31436919,0.0002,2]
[426417975,1782367843000,-541.07946885,0.0002,2]
[426417977,1782367843000,-200.0,0.0002,2]
[426417951,1782367843000,-151.0,0.0001955,2]
[426417962,1782367843000,-5908.61328594,0.0002,2]
[426417949,1782367843000,-151.0,0.0001955,2]
[426417934,1782367843000,-500.0,0.0001955,2]
[426417947,1782367843000,-151.0,0.0001955,2]
[426417919,1782367843000,-151.0,0.0001955,2]
[426417979,1782367843000,-52585.47133381,0.0002,2]
[426417917,1782367843000,-151.0,0.0001955,2]
[426417920,1782367843000,-151.0,0.0001955,2]
[426417921,1782367843000,-785.19337861,0.0001955,2]
[426417925,1782367843000,-155.09929951,0.0001955,2]
[426417928,1782367843000,-151.0,0.0001955,2]
[426417924,1782367843000,-151.0,0.0001955,2]
[426417923,1782367843000,-151.0,0.0001955,2]
[426417926,1782367843000,-151.0,0.0001955,2]
[426417922,1782367843000,-151.0,0.0001955,2]
[426417927,1782367843000,-151.79338993,0.0001955,2]
[426417932,1782367843000,-151.0,0.0001955,2]
[426417930,1782367843000,-500.0,0.0001955,2]
[426417929,1782367843000,-151.0,0.0001955,2]
[426417931,1782367843000,-151.0,0.0001955,2]
[426417933,1782367843000,-1473.30168622,0.0001955,2]
[426417940,1782367843000,-151.0,0.0001955,2]
[426417936,1782367843000,-151.0,0.0001955,2]
[426417937,1782367843000,-500.0,0.0001955,2]
[426417935,1782367843000,-152.0,0.0001955,2]
[426417939,1782367843000,-151.0,0.0001955,2]
[426417938,1782367843000,-152.0,0.0001955,2]
[426417942,1782367843000,-151.0,0.0001955,2]
[426417941,1782367843000,-518.42813385,0.0001955,2]
[426417943,1782367843000,-151.0,0.0001955,2]
[426417944,1782367843000,-151.0,0.0001955,2]
[426417946,1782367843000,-151.0,0.0001955,2]
[426417945,1782367843000,-151.0,0.0001955,2]
[426417948,1782367843000,-156.1151735,0.0001955,2]
[426417918,1782367843000,-4974.45996912,0.0001955,2]
[426417981,1782367843000,-936.07426143,0.0002,2]
[426417980,1782367843000,-4977.62640007,0.0002,2]
[426418009,1782367843000,-170.53,0.00020412,2]
[426418014,1782367843000,-150.0,0.0002058,2]
[426418012,1782367843000,-150.0,0.0002058,2]
[426418016,1782367843000,-150.0,0.0002058,2]
[426418018,1782367843000,-849.4515839,0.000206,2]
[426418010,1782367843000,-774.67,0.00020548,2]
[426418023,1782367843000,-785.19337861,0.00020646,2]
[426418022,1782367843000,-4974.45996912,0.00020646,2]
[426418027,1782367843000,-678.2,0.000209,2]
[426418030,1782367843000,-500.0,0.00020959,2]
[426418028,1782367843000,-4974.45996912,0.0002092,2]
[426418024,1782367843000,-603.48045861,0.000207,2]
[426418025,1782367843000,-849.4515839,0.000208,2]
[426418021,1782367843000,-201.54276184,0.00020646,2]
[426418029,1782367843000,-785.0,0.00020939,2]
[426418032,1782367843000,-150.0,0.00021,2]
[426418033,1782367843000,-2042.09299593,0.00021,2]
[426418031,1782367843000,-1195.04956631,0.00021,2]
[426418035,1782367843000,-179.0,0.00021,2]
[426418037,1782367843000,-557.5788265,0.00021194,2]
[426418036,1782367843000,-155.0,0.00021,2]
[426418034,1782367843000,-156.0,0.00021,2]
[426418038,1782367843000,-785.19337861,0.00021194,2]
[426418039,1782367843000,-4974.45996912,0.00021194,2]
[426418040,1782367843000,-1195.04956631,0.000212,2]
[426418043,1782367843000,-150.0,0.00021258,2]
[426418042,1782367843000,-150.0,0.00021258,2]
[426417982,1782367843000,-13096.8442034,0.0002,2]
[426418026,1782367843000,-446.184005,0.00020821,2]
[426418017,1782367843000,-289.40019274,0.0002058,2]
[426418041,1782367843000,-473.80653449,0.00021252,2]
[426418015,1782367843000,-150.0,0.0002058,2]
[426418011,1782367843000,-10828.14,0.00020548,2]
[426417985,1782367843000,-190.79333524,0.0002,2]
[426417987,1782367843000,-190.79333524,0.0002,2]
[426417984,1782367843000,-183.89523412,0.0002,2]
[426417989,1782367843000,-190.79333526,0.0002,2]
[426417988,1782367843000,-190.79333524,0.0002,2]
[426417986,1782367843000,-190.79333524,0.0002,2]
[426417990,1782367843000,-156.0,0.0002,2]
[426417991,1782367843000,-179.0,0.0002,2]
[426417992,1782367843000,-154.83118614,0.0002,2]
[426417994,1782367843000,-2000.0,0.0002,7]
[426417993,1782367843000,-155.0,0.0002,2]
[426417995,1782367843000,-4154.0,0.0002,2]
[426417998,1782367843000,-518.5,0.00020098,2]
[426417983,1782367843000,-18139.37733987,0.0002,2]
[426417996,1782367843000,-4335.0,0.0002,2]
[426418020,1782367843000,-537.6845,0.00020646,2]
[426418013,1782367843000,-150.0,0.0002058,2]
[426418019,1782367843000,-785.0,0.00020606,2]
[426418007,1782367843000,-4974.45996912,0.00020372,2]
[426417997,1782367843000,-537.92999952,0.00020075,2]
[426418005,1782367843000,-849.4515839,0.000202,2]
[426418008,1782367843000,-849.4515839,0.000204,2]
[426418000,1782367843000,-4974.45996912,0.00020098,2]
[426418003,1782367843000,-888.0,0.00020136,2]
[426417999,1782367843000,-200.0,0.00020098,2]
[426418002,1782367843000,-151.79338997,0.00020098,2]
[426418004,1782367843000,-187.12248808,0.00020152,2]
[426418001,1782367843000,-785.19337861,0.00020098,2]
[426418006,1782367843000,-789.77209853,0.00020274,2]
[426418087,1782367844000,-179.0,0.00022,2]
[426418085,1782367844000,-450.0,0.00022,2]
[426418086,1782367844000,-156.0,0.00022,2]
[426418083,1782367844000,-150.0,0.00022,2]
[426418084,1782367844000,-2214.46749715,0.00022,2]
[426418080,1782367844000,-785.0,0.00021936,2]
[426418076,1782367844000,-1195.04956631,0.000219,2]
[426418075,1782367844000,-1412.0,0.000218,2]
[426418077,1782367844000,-151.00001,0.00021918,2]
[426418081,1782367844000,-1650.84865547,0.00022,4]
[426418074,1782367844000,-4974.45996912,0.00021742,2]
[426418082,1782367844000,-300.0,0.00022,2]
[426418088,1782367844000,-155.0,0.00022,2]
[426418095,1782367844000,-4974.45996912,0.0002229,2]
[426418094,1782367844000,-785.19337861,0.0002229,2]
[426418091,1782367844000,-6399.96431373,0.00022107,2]
[426418089,1782367844000,-4974.45996912,0.00022016,2]
[426418090,1782367844000,-1195.04956631,0.000221,2]
[426418092,1782367844000,-245.09417176,0.0002211,2]
[426418097,1782367844000,-1346.58,0.00022466,2]
[426418096,1782367844000,-1195.04956631,0.000223,2]
[426418098,1782367844000,-1934.33,0.00022466,2]
[426418099,1782367844000,-1046.06,0.00022466,2]
[426418107,1782367844000,-801.94,0.00022691,2]
[426418100,1782367844000,-704.96,0.00022466,2]
[426418101,1782367844000,-2900.0,0.000225,15]
[426418079,1782367844000,-1010.95,0.00021918,2]
[426418093,1782367844000,-785.0,0.00022268,2]
[426418078,1782367844000,-5000.0,0.00021918,2]
[426418058,1782367844000,-1277.0,0.00021298,2]
[426418072,1782367844000,-501.20674818,0.00021742,2]
[426418044,1782367844000,-785.0,0.00021271,2]
[426418046,1782367844000,-150.0,0.00021298,2]
[426418045,1782367844000,-4881.15146204,0.00021273,2]
[426418048,1782367844000,-150.0,0.00021298,2]
[426418047,1782367844000,-150.0,0.00021298,2]
[426418049,1782367844000,-150.0,0.00021298,2]
[426418055,1782367844000,-150.0,0.00021298,2]
[426418050,1782367844000,-150.0,0.00021298,2]
[426418052,1782367844000,-150.0,0.00021298,2]
[426418051,1782367844000,-150.0,0.00021298,2]
[426418106,1782367844000,-785.0,0.000226,2]
[426418053,1782367844000,-150.0,0.00021298,2]
[426418057,1782367844000,-3562.0,0.00021298,2]
[426418056,1782367844000,-150.0,0.00021298,2]
[426418059,1782367844000,-1361.0,0.00021298,2]
[426418060,1782367844000,-383.0,0.00021298,2]
[426418061,1782367844000,-1230.0,0.00021298,2]
[426418064,1782367844000,-1195.04956631,0.000214,2]
[426418062,1782367844000,-6084.0,0.00021298,2]
[426418063,1782367844000,-3649.0,0.00021298,2]
[426418068,1782367844000,-537.92999952,0.0002154,2]
[426418065,1782367844000,-4974.45996912,0.00021468,2]
[426418067,1782367844000,-226.42415351,0.000215,2]
[426418066,1782367844000,-58659.59771124,0.000215,2]
[426418069,1782367844000,-1195.04956631,0.000216,2]
[426418071,1782367844000,-2000.0,0.00021667,7]
[426418070,1782367844000,-785.0,0.00021603,2]
[426418073,1782367844000,-785.19337861,0.00021742,2]
[426418102,1782367844000,-36221.53267352,0.000225,2]
[426418054,1782367844000,-150.0,0.00021298,2]
[426418103,1782367844000,-1195.04956631,0.000225,2]
[426418138,1782367844000,-174.15284468,0.00023768,2]
[426418137,1782367844000,-500.0,0.00023671,2]
[426418139,1782367844000,-174.54196635,0.00023768,2]
[426418141,1782367844000,-248.9177503,0.00023768,2]
[426418143,1782367844000,-200.62174283,0.00023768,2]
[426418144,1782367844000,-197.98049846,0.00023768,2]
[426418145,1782367844000,-314.73164001,0.00023768,2]
[426418146,1782367844000,-222.17449396,0.00023768,2]
[426418150,1782367844000,-163.77052213,0.00023819,2]
[426418147,1782367844000,-172.73143214,0.00023768,2]
[426418151,1782367844000,-157.05615192,0.00023819,2]
[426418148,1782367844000,-332.29699442,0.00023768,2]
[426418149,1782367844000,-709.10124685,0.00023768,2]
[426418142,1782367844000,-256.05416455,0.00023768,2]
[426418152,1782367844000,-209.11123862,0.00023819,2]
[426418154,1782367844000,-188.34978508,0.00023819,2]
[426418155,1782367844000,-165.14370423,0.00023819,2]
[426418156,1782367844000,-181.58723481,0.00023819,2]
[426418157,1782367844000,-168.9025751,0.00023819,2]
[426418158,1782367844000,-161.11377439,0.00023819,2]
[426418159,1782367844000,-175.88024011,0.00023819,2]
[426418162,1782367844000,-186.74588845,0.00023864,2]
[426418163,1782367844000,-158.94478582,0.00023864,2]
[426418161,1782367844000,-169.09804334,0.00023864,2]
[426418160,1782367844000,-219.26116133,0.00023864,2]
[426418166,1782367844000,-184.90926797,0.00023865,2]
[426418164,1782367844000,-171.8357231,0.00023864,2]
[426418105,1782367844000,-4974.45996912,0.00022564,2]
[426418153,1782367844000,-161.74859968,0.00023819,2]
[426418140,1782367844000,-176.70091541,0.00023768,2]
[426418165,1782367844000,-187.18583666,0.00023865,2]
[426418136,1782367844000,-4974.45996912,0.0002366,2]
[426418135,1782367844000,-785.0,0.00023598,2]
[426418104,1782367844000,-396.0,0.00022505,2]
[426418108,1782367844000,-1429.7,0.00022691,2]
[426418110,1782367844000,-1195.04956631,0.000227,2]
[426418112,1782367844000,-4938.3708359,0.00022753,2]
[426418111,1782367844000,-534.00982847,0.0002271,2]
[426418113,1782367844000,-678.2,0.000228,7]
[426418116,1782367844000,-1206.0604173,0.00022933,2]
[426418115,1782367844000,-4974.45996912,0.00022838,2]
[426418117,1782367844000,-1195.04956631,0.00023,2]
[426418114,1782367844000,-785.19337861,0.00022838,2]
[426418118,1782367844000,-150.0,0.00023,2]
[426418120,1782367844000,-179.0,0.00023,2]
[426418119,1782367844000,-170.0,0.00023,2]
[426418109,1782367844000,-35297.06,0.00022691,2]
[426418123,1782367844000,-4974.45996912,0.00023112,2]
[426418121,1782367844000,-167.0,0.00023,2]
[426418133,1782367844000,-2209.86077222,0.000235,2]
[426418132,1782367844000,-594.0,0.00023405,2]
[426418131,1782367844000,-4974.45996912,0.00023386,2]
[426418130,1782367844000,-785.19337861,0.00023386,2]
[426418127,1782367844000,-150.0,0.00023288,2]
[426418134,1782367844000,-301.0,0.000235,2]
[426418125,1782367844000,-785.0,0.00023265,2]
[426418126,1782367844000,-150.0,0.00023288,2]
[426418122,1782367844000,-537.92999952,0.00023004,2]
[426418124,1782367844000,-472.69893417,0.000232,2]
[426418128,1782367844000,-153.05995072,0.00023288,2]
[426418129,1782367844000,-2000.0,0.00023333,7]
[426418207,1782367845000,-3562.0,0.00024298,2]
[426418206,1782367845000,-150.0,0.00024298,2]
[426418205,1782367845000,-150.0,0.00024298,2]
[426418204,1782367845000,-150.0,0.00024298,2]
[426418202,1782367845000,-150.0,0.00024298,2]
[426418203,1782367845000,-150.0,0.00024298,2]
[426418199,1782367845000,-150.0,0.00024298,2]
[426418196,1782367845000,-150.0,0.00024258,2]
[426418209,1782367845000,-1361.0,0.00024298,2]
[426418197,1782367845000,-785.0,0.00024262,2]
[426418201,1782367845000,-150.0,0.00024298,2]
[426418200,1782367845000,-150.0,0.00024298,2]
[426418213,1782367845000,-3649.0,0.00024298,2]
[426418214,1782367845000,-75482.4132271,0.00024397,2]
[426418211,1782367845000,-1230.0,0.00024298,2]
[426418212,1782367845000,-6084.0,0.00024298,2]
[426418215,1782367845000,-2677.7,0.00024411,2]
[426418210,1782367845000,-383.0,0.00024298,2]
[426418217,1782367845000,-545.84,0.00024482,2]
[426418216,1782367845000,-537.92999952,0.00024468,2]
[426418219,1782367845000,-4974.45996912,0.00024482,2]
[426418218,1782367845000,-785.19337861,0.00024482,2]
[426418221,1782367845000,-678.2,0.000245,7]
[426418198,1782367845000,-150.0,0.00024298,2]
[426418222,1782367845000,-150.0,0.000245,2]
[426418208,1782367845000,-1277.0,0.00024298,2]
[426418195,1782367845000,-4974.45996912,0.00024208,2]
[426418176,1782367845000,-160.86386717,0.00023871,2]
[426418193,1782367845000,-179.0,0.00024,2]
[426418220,1782367845000,-1101.8994754,0.00024485,2]
[426418167,1782367845000,-157.71334593,0.00023865,2]
[426418170,1782367845000,-157.68419209,0.00023871,2]
[426418168,1782367845000,-161.68592306,0.00023865,2]
[426418169,1782367845000,-161.18504523,0.00023871,2]
[426418172,1782367845000,-200.28152374,0.00023871,2]
[426418171,1782367845000,-176.42883555,0.00023871,2]
[426418173,1782367845000,-198.0336629,0.00023871,2]
[426418174,1782367845000,-166.89997738,0.00023871,2]
[426418177,1782367845000,-173.86121272,0.00023871,2]
[426418179,1782367845000,-188.01531868,0.00023871,2]
[426418178,1782367845000,-216.68537028,0.00023871,2]
[426418175,1782367845000,-167.18094437,0.00023871,2]
[426418181,1782367845000,-160.35837558,0.00023871,2]
[426418180,1782367845000,-204.08789077,0.00023871,2]
[426418182,1782367845000,-785.0,0.0002393,2]
[426418183,1782367845000,-785.19337861,0.00023934,2]
[426418192,1782367845000,-500.0,0.00024,2]
[426418184,1782367845000,-4974.45996912,0.00023934,2]
[426418187,1782367845000,-7989.10826939,0.00024,2]
[426418186,1782367845000,-3600.0,0.00024,2]
[426418188,1782367845000,-1261.8439086,0.00024,2]
[426418189,1782367845000,-11208.1521782,0.00024,2]
[426418191,1782367845000,-150.0,0.00024,2]
[426418190,1782367845000,-129590.2338481,0.00024,2]
[426418194,1782367845000,-150.0,0.00024,2]
[426418223,1782367845000,-792.0,0.0002453,5]
[426418185,1782367845000,-10679.60528872,0.00024,14]
[426418228,1782367845000,-1000.0,0.00024658,2]
[426418259,1782367845000,-512.1083291,0.0002503,2]
[426418262,1782367845000,-395.96099692,0.0002503,2]
[426418258,1782367845000,-401.24348567,0.0002503,2]
[426418256,1782367845000,-497.83550059,0.0002503,2]
[426418263,1782367845000,-626.15131635,0.0002503,2]
[426418285,1782367845000,-235.19536655,0.00025083,2]
[426418260,1782367845000,-232.1857895,0.0002503,2]
[426418265,1782367845000,-444.34898793,0.0002503,2]
[426418264,1782367845000,-629.46328003,0.0002503,2]
[426418269,1782367845000,-664.59398884,0.0002503,2]
[426418273,1782367845000,-190.61683669,0.0002503,2]
[426418274,1782367845000,-178.64262665,0.00025037,2]
[426418276,1782367845000,-314.11230384,0.00025083,2]
[426418272,1782367845000,-153.47523884,0.0002503,2]
[426418275,1782367845000,-327.54104426,0.00025083,2]
[426418271,1782367845000,-531.82593514,0.0002503,2]
[426418278,1782367845000,-418.22247724,0.00025083,2]
[426418277,1782367845000,-242.28663408,0.00025083,2]
[426418280,1782367845000,-323.49719937,0.00025083,2]
[426418283,1782367845000,-207.27640971,0.00025083,2]
[426418281,1782367845000,-376.69957016,0.00025083,2]
[426418284,1782367845000,-172.66899518,0.00025083,2]
[426418282,1782367845000,-330.28740846,0.00025083,2]
[426418279,1782367845000,-154.46413638,0.00025083,2]
[426418225,1782367845000,-160.02799572,0.00024657,2]
[426418257,1782367845000,-195.58683252,0.0002503,2]
[426418255,1782367845000,-353.40183083,0.0002503,2]
[426418266,1782367845000,-345.46286429,0.0002503,2]
[426418254,1782367845000,-231.90928126,0.0002503,2]
[426418226,1782367845000,-164.52,0.00024658,2]
[426418253,1782367845000,-150.03812539,0.0002503,2]
[426418227,1782367845000,-156.500018,0.00024658,2]
[426418229,1782367845000,-944.33,0.00024658,2]
[426418230,1782367845000,-151.0,0.00024658,2]
[426418231,1782367845000,-151.0,0.00024658,2]
[426418235,1782367845000,-4974.45996919,0.00024756,2]
[426418234,1782367845000,-177.19,0.00024658,2]
[426418232,1782367845000,-151.0,0.00024658,2]
[426418233,1782367845000,-151.0,0.00024658,2]
[426418238,1782367845000,-1406.52583417,0.00025,21]
[426418239,1782367845000,-515588.01284874,0.00025,2]
[426418240,1782367845000,-1020.0,0.00025,2]
[426418224,1782367845000,-785.0,0.00024595,2]
[426418241,1782367845000,-150.0,0.00025,2]
[426418236,1782367845000,-785.0,0.00024927,2]
[426418250,1782367845000,-349.0839327,0.0002503,2]
[426418248,1782367845000,-198.11764546,0.0002503,2]
[426418247,1782367845000,-348.30568936,0.0002503,2]
[426418246,1782367845000,-785.19337865,0.0002503,2]
[426418252,1782367845000,-179.76355722,0.0002503,2]
[426418249,1782367845000,-152.82620691,0.0002503,2]